[Event "VII Open Internacional Quart de Poblet"]
[Site "Quart de Poblet, Spain"]
[Date "2019.08.05"]
[Round "1.1"]
[White "Cruz Lledo, Pablo"]
[Black "Ortega Sanchis, Angela"]
[Result "1-0"]
[TimeControl "90m +30s por jugada"]
[WhiteFideId "2297361"]
[BlackFideId "54532035"]
[WhiteElo "2445"]
[BlackElo "1675"]

1. d4 {[%clk 01:26:34]} {[%emt 00:04:27]} Nf6 {[%clk 01:30:52]} {[%emt
00:00:08]} 2. c4 {[%clk 01:23:01]} {[%emt 00:05:44]} g6 {[%clk 01:30:14]} 3.
Nc3 {[%clk 01:23:10]} Bg7 {[%clk 01:30:36]} 4. Nf3 {[%clk 01:23:18]} {[%emt
00:00:18]} d6 {[%clk 01:30:05]} {[%emt 00:01:41]} 5. Bg5 {[%clk 01:23:36]} h6
{[%clk 01:29:12]} {[%emt 00:00:58]} 6. Bh4 {[%clk 01:23:54]} {[%emt 00:00:15]}
O-O {[%clk 01:27:59]} {[%emt 00:01:39]} 7. e3 {[%clk 01:23:25]} {[%emt
00:01:11]} Nc6 {[%clk 01:26:09]} {[%emt 00:02:07]} 8. Be2 {[%clk 01:23:15]}
{[%emt 00:00:41]} Bf5 {[%clk 01:22:06]} {[%emt 00:04:46]} 9. d5 {[%clk
01:14:51]} {[%emt 00:08:40]} Nb8 {[%clk 01:18:13]} {[%emt 00:04:24]} 10. Nd4
{[%clk 01:13:23]} {[%emt 00:01:58]} Bd7 {[%clk 01:17:36]} {[%emt 00:01:07]} 11.
O-O {[%clk 01:12:37]} {[%emt 00:01:21]} e5 {[%clk 01:15:21]} {[%emt 00:02:45]}
12. dxe6 {[%clk 01:12:31]} {[%emt 00:00:32]} fxe6 {[%clk 01:15:31]} {[%emt
00:00:29]} 13. Qc2 {[%clk 00:58:23]} {[%emt 00:14:30]} e5 {[%clk 01:08:53]}
{[%emt 00:07:07]} 14. Nb3 {[%clk 00:58:02]} {[%emt 00:00:51]} Bf5 {[%clk
01:08:08]} {[%emt 00:01:16]} 15. Bd3 {[%clk 00:58:00]} {[%emt 00:00:35]} Bxd3
{[%clk 01:08:09]} {[%emt 00:00:29]} 16. Qxd3 {[%clk 00:58:02]} {[%emt
00:00:24]} Kh7 {[%clk 01:06:09]} {[%emt 00:02:34]} 17. c5 {[%clk 00:56:58]}
{[%emt 00:01:33]} dxc5 {[%clk 00:59:12]} {[%emt 00:07:28]} 18. Qxd8 {[%clk
00:57:14]} {[%emt 00:00:11]} Rxd8 {[%clk 00:59:40]} {[%emt 00:00:04]} 19. Nxc5
{[%clk 00:57:19]} {[%emt 00:00:21]} g5 {[%clk 00:56:10]} {[%emt 00:04:00]} 20.
Bg3 {[%clk 00:55:41]} {[%emt 00:02:07]} Nc6 {[%clk 00:53:44]} {[%emt 00:02:57]}
21. Rfd1 {[%clk 00:53:54]} {[%emt 00:02:17]} Nh5 {[%clk 00:47:42]} {[%emt
00:06:42]} 22. Ne6 {[%clk 00:50:30]} {[%emt 00:03:44]} Rxd1+ {[%clk 00:46:26]}
{[%emt 00:01:47]} 23. Rxd1 {[%clk 00:50:49]} {[%emt 00:00:10]} Nxg3 {[%clk
00:45:20]} {[%emt 00:01:40]} 24. hxg3 {[%clk 00:50:59]} {[%emt 00:00:27]} Re8
{[%clk 00:45:00]} {[%emt 00:00:39]} 25. Nxc7 {[%clk 00:50:45]} {[%emt
00:00:48]} Rd8 {[%clk 00:44:53]} {[%emt 00:00:36]} 26. N3d5 {[%clk 00:47:07]}
{[%emt 00:04:10]} Nb4 {[%clk 00:38:59]} {[%emt 00:06:23]} 27. e4 {[%clk
00:47:03]} {[%emt 00:00:33]} Nxd5 {[%clk 00:38:20]} {[%emt 00:01:05]} 28. Rxd5
{[%clk 00:47:00]} {[%emt 00:00:35]} Rxd5 {[%clk 00:38:10]} {[%emt 00:00:38]} 29.
Nxd5 {[%clk 00:47:24]} {[%emt 00:00:07]} Kg8 {[%clk 00:36:55]} {[%emt
00:01:46]} 30. Kf1 {[%clk 00:47:21]} {[%emt 00:00:44]} Kf7 {[%clk 00:37:01]}
{[%emt 00:00:16]} 31. g4 {[%clk 00:46:26]} {[%emt 00:01:21]} Ke6 {[%clk
00:36:18]} {[%emt 00:01:15]} 32. Ke2 {[%clk 00:46:45]} {[%emt 00:00:13]} a5
{[%clk 00:33:59]} {[%emt 00:02:44]} 33. Kd3 {[%clk 00:46:54]} {[%emt 00:00:22]}
Bf8 {[%clk 00:32:57]} {[%emt 00:01:36]} 34. Kc4 {[%clk 00:47:09]} {[%emt
00:00:11]} Kd6 {[%clk 00:31:07]} {[%emt 00:02:25]} 35. Kb5 {[%clk 00:47:28]}
{[%emt 00:00:07]} Kd7 {[%clk 00:30:27]} {[%emt 00:01:23]} 36. Kb6 {[%clk
00:47:14]} {[%emt 00:00:32]} Kc8 {[%clk 00:28:55]} {[%emt 00:02:03]} 37. Kxa5
{[%clk 00:47:35]} {[%emt 00:00:06]} Bc5 {[%clk 00:29:12]} {[%emt 00:00:14]} 38.
f3 {[%clk 00:47:59]} {[%emt 00:00:06]} Kd7 {[%clk 00:27:55]} {[%emt 00:01:47]}
39. b4 {[%clk 00:48:13]} {[%emt 00:00:16]} Bf8 {[%clk 00:28:01]} {[%emt
00:00:23]} 40. Kb6 {[%clk 00:48:29]} {[%emt 00:00:14]} Kc8 {[%clk 00:28:10]}
{[%emt 00:00:21]} 41. a4 {[%clk 00:48:39]} {[%emt 00:00:21]} Kb8 {[%clk
00:27:57]} {[%emt 00:00:48]} 42. a5 {[%clk 00:48:55]} {[%emt 00:00:09]} 1-0

[Event "VII Open Internacional Quart de Poblet"]
[Site "Quart de Poblet, Spain"]
[Date "2019.08.05"]
[Round "1.2"]
[White "Ramirez Aucejo, Hector"]
[Black "Sanchez Saez, Francisco"]
[Result "0-1"]
[TimeControl "90m +30s por jugada"]
[WhiteFideId "32032064"]
[BlackFideId "2231743"]
[WhiteElo "1668"]
[BlackElo "2359"]

1. e4 {[%clk 01:30:59]} g6 {[%clk 01:30:51]} {[%emt 00:00:08]} 2. d4 {[%clk
01:31:26]} Bg7 {[%clk 01:31:14]} 3. Nc3 {[%clk 01:31:46]} {[%emt 00:00:07]} d6
{[%clk 01:31:38]} {[%emt 00:00:06]} 4. f4 {[%clk 01:32:05]} {[%emt 00:00:09]}
a6 {[%clk 01:32:03]} {[%emt 00:00:06]} 5. Nf3 {[%clk 01:32:17]} {[%emt
00:00:13]} b5 {[%clk 01:32:29]} {[%emt 00:00:14]} 6. Bd3 {[%clk 01:32:33]}
{[%emt 00:00:05]} Nd7 {[%clk 01:32:52]} {[%emt 00:00:39]} 7. Ne2 {[%clk
01:29:33]} {[%emt 00:03:16]} c5 {[%clk 01:32:43]} {[%emt 00:00:22]} 8. c3
{[%clk 01:29:56]} {[%emt 00:00:36]} Bb7 {[%clk 01:32:34]} {[%emt 00:00:12]} 9.
O-O {[%clk 01:29:19]} {[%emt 00:01:08]} Ngf6 {[%clk 01:32:31]} {[%emt
00:00:30]} 10. e5 {[%clk 01:28:08]} {[%emt 00:02:05]} Nd5 {[%clk 01:32:26]}
{[%emt 00:00:12]} 11. e6 {[%clk 01:27:24]} {[%emt 00:01:33]} fxe6 {[%clk
01:31:43]} {[%emt 00:01:20]} 12. Ng5 {[%clk 01:27:40]} {[%emt 00:00:07]} Nf8
{[%clk 01:30:29]} {[%emt 00:01:24]} 13. dxc5 {[%clk 01:25:23]} {[%emt
00:02:47]} dxc5 {[%clk 01:30:36]} {[%emt 00:00:41]} 14. Ng3 {[%clk 01:18:31]}
{[%emt 00:07:25]} c4 {[%clk 01:25:16]} {[%emt 00:05:52]} 15. Bc2 {[%clk
01:17:21]} {[%emt 00:01:17]} Qb6+ {[%clk 01:25:09]} {[%emt 00:00:53]} 16. Kh1
{[%clk 01:17:49]} h6 {[%clk 01:23:39]} {[%emt 00:01:57]} 17. Nf3 {[%emt
00:01:03]} O-O-O {[%clk 01:21:41]} {[%emt 00:02:35]} 18. Qe2 {[%clk 01:17:10]}
{[%emt 00:00:24]} Nd7 {[%clk 01:18:15]} {[%emt 00:04:02]} 19. Bxg6 {[%clk
01:16:18]} {[%emt 00:01:27]} e5 {[%clk 01:00:49]} {[%emt 00:17:40]} 20. f5
{[%clk 01:02:31]} {[%emt 00:14:32]} Nc5 {[%clk 00:49:38]} {[%emt 00:11:25]} 21.
Nxe5 {[%clk 00:52:17]} {[%emt 00:10:54]} Bxe5 {[%clk 00:48:05]} {[%emt
00:01:57]} 22. Qxe5 {[%clk 00:52:44]} {[%emt 00:00:16]} Nd3 {[%clk 00:48:06]}
{[%emt 00:00:27]} 23. Qe6+ {[%clk 00:52:34]} {[%emt 00:00:43]} Qxe6 {[%clk
00:48:20]} {[%emt 00:00:10]} 24. fxe6 {[%clk 00:53:02]} Nxc1 {[%clk 00:48:30]}
{[%emt 00:00:35]} 25. Raxc1 {[%clk 00:53:04]} {[%emt 00:00:10]} Ne3 {[%clk
00:48:52]} {[%emt 00:00:05]} 26. Rf2 {[%clk 00:52:14]} {[%emt 00:01:18]} Rhf8
{[%clk 00:46:57]} {[%emt 00:02:24]} 27. Bf7 {[%clk 00:32:56]} {[%emt 00:20:08]}
Nxg2 {[%clk 00:44:14]} {[%emt 00:02:53]} 28. Kg1 {[%clk 00:31:09]} {[%emt
00:02:18]} Ne3 {[%clk 00:43:31]} {[%emt 00:01:26]} 29. Re1 {[%clk 00:27:59]}
{[%emt 00:03:26]} Rd3 {[%clk 00:34:48]} {[%emt 00:09:14]} 30. Rxe3 {[%clk
00:17:45]} {[%emt 00:10:54]} Rxe3 {[%clk 00:35:10]} 31. Nf5 {[%clk 00:18:06]}
{[%emt 00:00:05]} Re1+ {[%clk 00:35:23]} {[%emt 00:00:18]} 32. Rf1 {[%clk
00:18:28]} {[%emt 00:00:10]} Rxf1+ {[%clk 00:35:49]} {[%emt 00:00:08]} 33. Kxf1
{[%clk 00:18:49]} {[%emt 00:00:07]} Kd8 {[%clk 00:35:57]} {[%emt 00:00:21]} 34.
Nxh6 {[%clk 00:18:41]} {[%emt 00:00:35]} Rh8 {[%clk 00:36:12]} {[%emt
00:00:34]} 35. Ng4 {[%clk 00:19:09]} Rh4 {[%emt 00:02:11]} 0-1

[Event "VII Open Internacional Quart de Poblet"]
[Site "Quart de Poblet, Spain"]
[Date "2019.08.05"]
[Round "1.3"]
[White "Gavarrete, Nahun"]
[Black "Ordonez Carrasco, Jorge"]
[Result "1-0"]
[TimeControl "90m +30s por jugada"]
[WhiteFideId "8400709"]
[BlackFideId "24529826"]
[WhiteElo "2349"]
[BlackElo "1661"]

1. e4 {[%clk 01:24:41]} {[%emt 00:06:20]} c5 {[%clk 01:30:49]} {[%emt
00:00:18]} 2. Nf3 {[%clk 01:25:00]} {[%emt 00:00:23]} d6 {[%clk 01:30:25]}
{[%emt 00:00:38]} 3. d4 {[%clk 01:25:22]} {[%emt 00:00:08]} cxd4 {[%clk
01:30:04]} {[%emt 00:00:51]} 4. Nxd4 {[%clk 01:25:45]} {[%emt 00:00:09]} Nf6
{[%clk 01:30:00]} {[%emt 00:00:32]} 5. Nc3 {[%clk 01:26:07]} {[%emt 00:00:11]}
g6 {[%clk 01:28:57]} {[%emt 00:01:28]} 6. Be3 {[%clk 01:26:25]} {[%emt
00:00:10]} Bg7 {[%clk 01:27:48]} {[%emt 00:02:12]} 7. f3 {[%clk 01:26:48]}
{[%emt 00:00:03]} O-O {[%clk 01:26:37]} {[%emt 00:01:13]} 8. Qd2 {[%clk
01:27:05]} {[%emt 00:00:30]} Nc6 {[%clk 01:25:51]} {[%emt 00:01:01]} 9. Bc4
{[%clk 01:27:26]} {[%emt 00:00:32]} Bd7 {[%clk 01:24:05]} {[%emt 00:01:52]} 10.
O-O-O {[%clk 01:27:45]} {[%emt 00:00:41]} Rc8 {[%clk 01:23:18]} {[%emt
00:00:48]} 11. Bb3 {[%clk 01:28:07]} {[%emt 00:00:09]} Ne5 {[%clk 01:20:34]}
{[%emt 00:03:55]} 12. h4 {[%clk 01:28:29]} h5 {[%clk 01:19:05]} {[%emt
00:01:29]} 13. Kb1 {[%clk 01:28:26]} {[%emt 00:00:27]} Nc4 {[%clk 01:17:16]}
{[%emt 00:02:31]} 14. Bxc4 {[%clk 01:27:06]} {[%emt 00:02:02]} Rxc4 {[%clk
01:17:39]} 15. Nde2 {[%clk 01:23:09]} {[%emt 00:04:42]} b5 {[%clk 01:15:05]}
{[%emt 00:03:18]} 16. Bh6 {[%clk 01:04:34]} {[%emt 00:18:21]} b4 {[%clk
01:02:52]} {[%emt 00:12:46]} 17. Nd5 {[%clk 01:04:01]} {[%emt 00:00:57]} Nxd5
{[%clk 01:01:29]} {[%emt 00:02:08]} 18. Bxg7 {[%clk 01:03:16]} {[%emt
00:01:40]} Kxg7 {[%clk 01:01:17]} {[%emt 00:00:05]} 19. exd5 {[%clk 01:03:37]}
{[%emt 00:00:08]} a5 {[%clk 00:57:53]} {[%emt 00:03:56]} 20. b3 {[%clk
00:59:36]} {[%emt 00:04:28]} Rc5 {[%clk 00:49:05]} {[%emt 00:09:19]} 21. g4
{[%emt 00:01:06]} hxg4 {[%clk 00:48:20]} {[%emt 00:00:33]} 22. fxg4 {[%clk
01:00:02]} {[%emt 00:00:12]} f6 {[%clk 00:44:46]} {[%emt 00:03:59]} 23. Nf4
{[%clk 00:41:30]} {[%emt 00:19:02]} a4 {[%clk 00:34:36]} {[%emt 00:10:41]} 24.
Qd3 {[%clk 00:37:15]} {[%emt 00:04:49]} Qe8 {[%clk 00:32:07]} {[%emt 00:02:54]}
25. Rde1 {[%clk 00:36:45]} {[%emt 00:01:02]} axb3 {[%clk 00:30:53]} {[%emt
00:01:47]} 26. axb3 {[%clk 00:37:01]} {[%emt 00:00:12]} Bxg4 {[%clk 00:28:05]}
{[%emt 00:03:17]} 27. Rhg1 {[%clk 00:35:19]} {[%emt 00:02:21]} Rc3 {[%clk
00:22:33]} {[%emt 00:05:51]} 28. Rxe7+ {[%clk 00:34:29]} {[%emt 00:01:20]} Qxe7
{[%clk 00:22:42]} {[%emt 00:00:21]} 29. Qxg6+ {[%clk 00:34:52]} {[%emt
00:00:41]} Kh8 {[%clk 00:23:03]} 30. Qh6+ {[%clk 00:35:16]} {[%emt 00:00:03]}
1-0

[Event "VII Open Internacional Quart de Poblet"]
[Site "Quart de Poblet, Spain"]
[Date "2019.08.05"]
[Round "1.4"]
[White "Yuste Valenzuela, Alejandro"]
[Black "Castella Garcia, Fausto"]
[Result "0-1"]
[TimeControl "90m +30s por jugada"]
[WhiteFideId "54535760"]
[BlackFideId "3501922"]
[WhiteElo "1660"]
[BlackElo "2315"]

1. e4 {[%clk 01:30:58]} {[%emt 00:00:03]} c5 {[%clk 01:29:05]} {[%emt
00:01:54]} 2. Nf3 {[%clk 01:31:14]} {[%emt 00:00:13]} g6 {[%clk 01:28:43]}
{[%emt 00:00:51]} 3. d4 {[%clk 01:30:47]} {[%emt 00:00:56]} Bg7 {[%clk
01:28:54]} {[%emt 00:00:20]} 4. c3 {[%clk 01:28:31]} {[%emt 00:02:46]} cxd4
{[%clk 01:29:05]} {[%emt 00:00:19]} 5. cxd4 {[%clk 01:27:42]} {[%emt 00:01:19]}
d5 {[%clk 01:29:23]} {[%emt 00:00:19]} 6. e5 {[%clk 01:21:14]} {[%emt
00:06:50]} Nc6 {[%clk 01:24:36]} {[%emt 00:05:20]} 7. Nc3 {[%clk 01:19:13]}
{[%emt 00:02:28]} Nh6 {[%clk 01:23:09]} {[%emt 00:02:23]} 8. Bg5 {[%clk
01:06:49]} {[%emt 00:12:41]} f6 {[%clk 01:14:36]} {[%emt 00:09:01]} 9. exf6
{[%clk 01:03:45]} {[%emt 00:03:56]} exf6 {[%clk 01:14:57]} 10. Bxh6 {[%clk
00:52:36]} {[%emt 00:11:18]} Bxh6 {[%clk 01:15:08]} {[%emt 00:00:41]} 11. Qb3
{[%clk 00:51:18]} {[%emt 00:01:19]} O-O {[%clk 01:07:15]} {[%emt 00:08:33]} 12.
Qxd5+ {[%clk 00:37:09]} {[%emt 00:14:30]} Qxd5 {[%clk 01:02:23]} {[%emt
00:05:22]} 13. Nxd5 {[%clk 00:37:31]} {[%emt 00:00:18]} Bg4 {[%clk 01:02:41]}
{[%emt 00:00:09]} 14. Bc4 {[%clk 00:28:52]} {[%emt 00:09:01]} Kh8 {[%clk
00:59:58]} {[%emt 00:03:31]} 15. Nc7 {[%clk 00:18:38]} {[%emt 00:10:27]} Rac8
{[%clk 00:56:16]} {[%emt 00:04:15]} 16. Be6 {[%clk 00:15:34]} {[%emt 00:03:29]}
Bxf3 {[%clk 00:48:05]} {[%emt 00:09:07]} 17. Bxc8 {[%clk 00:15:09]} {[%emt
00:00:30]} Rxc8 {[%clk 00:44:44]} {[%emt 00:04:06]} 18. gxf3 {[%clk 00:07:03]}
{[%emt 00:08:24]} Rxc7 {[%clk 00:41:43]} {[%emt 00:03:29]} 19. Rd1 {[%clk
00:05:30]} {[%emt 00:02:03]} Rd7 {[%clk 00:40:31]} {[%emt 00:01:43]} 20. d5
{[%clk 00:03:33]} {[%emt 00:02:27]} Nb4 {[%clk 00:39:34]} {[%emt 00:01:27]} 21.
O-O {[%clk 00:02:29]} {[%emt 00:01:52]} Kg8 {[%clk 00:38:21]} {[%emt 00:01:25]}
22. d6 {[%clk 00:01:23]} {[%emt 00:01:41]} Nc6 {[%clk 00:38:10]} {[%emt
00:00:43]} 23. Rd5 {[%clk 00:00:37]} {[%emt 00:01:10]} Kf7 {[%clk 00:37:54]}
{[%emt 00:00:46]} 24. Re1 {[%clk 00:00:45]} {[%emt 00:00:23]} Ne5 {[%clk
00:37:39]} {[%emt 00:00:44]} 25. Kg2 {[%clk 00:00:39]} {[%emt 00:00:37]} Bf4
{[%clk 00:35:24]} {[%emt 00:02:44]} 26. Re4 {[%clk 00:00:35]} {[%emt 00:00:33]}
g5 {[%clk 00:35:38]} {[%emt 00:00:19]} 27. Rb4 {[%clk 00:00:35]} {[%emt
00:00:28]} Nc6 {[%clk 00:34:30]} {[%emt 00:01:38]} 28. Rb3 {[%clk 00:00:35]}
{[%emt 00:00:31]} Ke6 {[%clk 00:34:31]} {[%emt 00:00:27]} 29. Rdb5 {[%clk
00:00:42]} {[%emt 00:00:22]} Nd4 {[%clk 00:34:27]} {[%emt 00:00:42]} 30. Rxb7
{[%clk 00:00:42]} {[%emt 00:00:23]} Nxb3 {[%clk 00:34:47]} {[%emt 00:00:24]} 31.
Rxb3 {[%clk 00:01:08]} Bxd6 {[%clk 00:34:51]} {[%emt 00:00:19]} 32. Re3+ {[%clk
00:01:27]} {[%emt 00:00:23]} Be5 {[%clk 00:35:05]} {[%emt 00:00:04]} 33. Re2
{[%clk 00:01:18]} {[%emt 00:00:39]} Kf5 {[%clk 00:34:50]} {[%emt 00:00:43]} 34.
h3 {[%clk 00:00:56]} {[%emt 00:00:51]} h5 {[%clk 00:35:04]} {[%emt 00:00:18]}
35. Rc2 {[%clk 00:00:32]} {[%emt 00:00:51]} Rd1 {[%clk 00:35:00]} {[%emt
00:00:35]} 36. b3 {[%clk 00:00:36]} {[%emt 00:00:28]} Rb1 {[%clk 00:35:04]}
{[%emt 00:00:24]} 37. Rc5 {[%clk 00:00:41]} {[%emt 00:00:40]} Kg6 {[%clk
00:34:13]} {[%emt 00:01:07]} 38. Rc2 {[%clk 00:00:36]} {[%emt 00:00:33]} Rb2
{[%clk 00:34:25]} {[%emt 00:00:18]} 39. Rxb2 {[%clk 00:00:38]} {[%emt
00:00:28]} Bxb2 {[%clk 00:34:53]} {[%emt 00:00:19]} 40. a4 {[%clk 00:00:38]}
{[%emt 00:00:19]} a5 {[%clk 00:35:11]} {[%emt 00:00:10]} 41. Kg3 {[%clk
00:00:52]} {[%emt 00:00:12]} Be5+ {[%clk 00:35:21]} {[%emt 00:00:22]} 42. Kg2
{[%clk 00:01:16]} {[%emt 00:00:44]} Kf5 {[%clk 00:35:39]} 43. Kh1 {[%clk
00:01:39]} {[%emt 00:00:03]} Bd6 {[%clk 00:35:44]} {[%emt 00:00:07]} 44. Kg2
{[%clk 00:02:04]} {[%emt 00:00:20]} Kf4 {[%clk 00:35:55]} {[%emt 00:00:03]} 45.
Kh2 {[%clk 00:02:17]} {[%emt 00:00:11]} Kxf3+ {[%clk 00:36:17]} {[%emt
00:00:13]} 46. Kg1 {[%clk 00:02:25]} {[%emt 00:00:22]} Bc5 {[%clk 00:36:33]}
{[%emt 00:00:11]} 47. Kh2 {[%clk 00:02:07]} {[%emt 00:00:48]} Bxf2 {[%emt
00:00:58]} 0-1

[Event "VII Open Internacional Quart de Poblet"]
[Site "Quart de Poblet, Spain"]
[Date "2019.08.05"]
[Round "1.5"]
[White "Chernikov, Vladimir"]
[Black "Gil Pou, Jose Luis"]
[Result "1-0"]
[TimeControl "90m +30s por jugada"]
[WhiteFideId "14112914"]
[BlackFideId "2281392"]
[WhiteElo "2315"]
[BlackElo "1655"]

1. c4 {[%clk 01:30:55]} {[%emt 00:00:12]} g6 {[%clk 01:30:53]} {[%emt
00:00:13]} 2. d4 {[%clk 01:31:06]} {[%emt 00:00:13]} Bg7 {[%clk 01:31:10]}
{[%emt 00:00:11]} 3. h4 {[%clk 01:31:35]} h5 {[%clk 01:31:20]} {[%emt
00:00:20]} 4. Nc3 {[%clk 01:31:48]} {[%emt 00:00:16]} Nf6 {[%clk 01:30:35]}
{[%emt 00:01:11]} 5. e4 {[%clk 01:32:02]} {[%emt 00:00:20]} d6 {[%clk
01:30:50]} {[%emt 00:00:16]} 6. Bg5 {[%clk 01:32:24]} {[%emt 00:00:13]} O-O
{[%clk 01:30:56]} {[%emt 00:00:17]} 7. Be2 {[%clk 01:32:36]} {[%emt 00:00:16]}
Bg4 {[%clk 01:29:54]} {[%emt 00:01:34]} 8. Bxg4 {[%clk 01:31:02]} {[%emt
00:02:12]} Nxg4 {[%clk 01:30:00]} {[%emt 00:00:23]} 9. f3 {[%clk 01:31:24]}
{[%emt 00:00:12]} Nf6 {[%clk 01:30:15]} {[%emt 00:00:05]} 10. Nge2 {[%clk
01:30:49]} {[%emt 00:01:25]} Nc6 {[%clk 01:30:11]} {[%emt 00:00:13]} 11. Qd2
{[%clk 01:30:40]} {[%emt 00:00:37]} e5 {[%clk 01:28:41]} {[%emt 00:02:00]} 12.
d5 {[%clk 01:29:20]} {[%emt 00:02:10]} Ne7 {[%clk 01:28:22]} {[%emt 00:00:28]}
13. O-O-O {[%clk 01:29:40]} {[%emt 00:00:37]} Nh7 {[%clk 01:28:14]} {[%emt
00:00:11]} 14. g4 {[%clk 01:28:16]} {[%emt 00:03:13]} Nxg5 {[%clk 01:27:27]} 15.
hxg5 {[%clk 01:28:41]} {[%emt 00:00:34]} hxg4 {[%clk 01:26:53]} {[%emt
00:01:06]} 16. fxg4 {[%clk 01:28:42]} f5 {[%clk 01:24:36]} {[%emt 00:03:00]} 17.
gxf6 {[%clk 01:27:55]} {[%emt 00:01:04]} Rxf6 {[%clk 01:23:58]} {[%emt
00:01:14]} 18. Ng3 {[%clk 01:27:27]} {[%emt 00:01:07]} Qd7 {[%clk 01:22:54]}
{[%emt 00:01:18]} 19. g5 {[%clk 01:22:52]} {[%emt 00:05:07]} Rf3 {[%clk
01:22:34]} {[%emt 00:00:45]} 20. Qh2 {[%clk 01:19:23]} {[%emt 00:04:16]} Qg4
{[%clk 01:21:12]} {[%emt 00:01:59]} 21. Rdg1 {[%clk 01:19:35]} {[%emt
00:00:06]} Kf7 {[%clk 01:18:58]} {[%emt 00:02:36]} 22. Nge2 {[%clk 01:16:29]}
{[%emt 00:03:34]} Qh5 {[%clk 01:14:48]} {[%emt 00:04:43]} 23. Qg2 {[%clk
01:16:45]} {[%emt 00:00:14]} 1-0

[Event "VII Open Internacional Quart de Poblet"]
[Site "Quart de Poblet, Spain"]
[Date "2019.08.05"]
[Round "1.6"]
[White "Marques Montolio, Luis"]
[Black "Nieves Cabanes, Jose Manuel"]
[Result "0-1"]
[TimeControl "90m +30s por jugada"]
[WhiteFideId "22244450"]
[BlackFideId "22245715"]
[WhiteElo "1632"]
[BlackElo "2311"]

1. e4 {[%clk 01:30:57]} e6 {[%clk 01:30:56]} {[%emt 00:00:22]} 2. d4 {[%clk
01:31:23]} d5 {[%clk 01:31:24]} {[%emt 00:00:05]} 3. exd5 {[%clk 01:31:46]}
exd5 {[%clk 01:31:50]} 4. Bd3 {[%clk 01:32:09]} c5 {[%clk 01:32:16]} {[%emt
00:00:12]} 5. c3 {[%clk 01:31:15]} {[%emt 00:01:15]} Nc6 {[%clk 01:29:48]}
{[%emt 00:03:11]} 6. Nf3 {[%clk 01:31:14]} {[%emt 00:00:21]} Bg4 {[%clk
01:27:34]} {[%emt 00:03:22]} 7. dxc5 {[%clk 01:30:15]} {[%emt 00:01:13]} Bxc5
{[%clk 01:27:24]} {[%emt 00:00:14]} 8. O-O {[%clk 01:29:31]} {[%emt 00:01:43]}
Nf6 {[%clk 01:25:20]} {[%emt 00:02:06]} 9. Bg5 {[%clk 01:29:34]} {[%emt
00:00:28]} O-O {[%clk 01:23:24]} {[%emt 00:02:22]} 10. Re1 {[%clk 01:28:39]}
{[%emt 00:01:26]} h6 {[%emt 00:07:03]} 11. Bh4 {[%clk 01:28:29]} Qd6 {[%clk
01:17:03]} {[%emt 00:01:01]} 12. Bg3 {[%clk 01:28:06]} {[%emt 00:01:19]} Qd7
{[%clk 01:16:54]} {[%emt 00:00:17]} 13. Nbd2 {[%clk 01:28:21]} {[%emt
00:00:34]} Nh5 {[%clk 01:14:34]} {[%emt 00:06:36]} 14. Qc2 {[%clk 01:25:23]}
Nxg3 {[%clk 01:14:00]} {[%emt 00:00:28]} 15. hxg3 {[%clk 01:25:47]} Qd6 {[%clk
01:11:21]} {[%emt 00:03:07]} 16. Kf1 {[%clk 01:25:52]} {[%emt 00:00:38]} Qf6
{[%clk 01:09:20]} {[%emt 00:02:35]} 17. Re2 {[%clk 01:23:39]} {[%emt 00:02:30]}
Rac8 {[%clk 01:09:05]} {[%emt 00:00:40]} 18. a3 {[%clk 01:23:25]} {[%emt
00:00:50]} Bb6 {[%clk 01:05:36]} {[%emt 00:03:54]} 19. Qa4 {[%clk 01:20:02]}
{[%emt 00:03:54]} h5 {[%clk 01:00:12]} {[%emt 00:05:52]} 20. Qf4 {[%clk
01:18:15]} {[%emt 00:02:17]} Qd8 {[%clk 00:59:55]} {[%emt 00:00:47]} 21. Qa4
{[%clk 01:15:12]} {[%emt 00:03:36]} Bc7 {[%clk 00:54:51]} {[%emt 00:05:39]} 22.
Rae1 {[%clk 01:14:41]} {[%emt 00:01:02]} a6 {[%clk 00:54:04]} {[%emt 00:01:07]}
23. Re3 {[%clk 01:13:31]} {[%emt 00:01:53]} g6 {[%clk 00:48:05]} {[%emt
00:06:15]} 24. Qc2 {[%clk 01:09:35]} {[%emt 00:04:27]} Kg7 {[%clk 00:45:31]}
{[%emt 00:03:14]} 25. Nh2 {[%clk 01:09:30]} {[%emt 00:01:00]} Bb6 {[%clk
00:44:31]} {[%emt 00:00:55]} 26. Nxg4 {[%clk 01:08:50]} {[%emt 00:01:42]} hxg4
{[%clk 00:44:53]} 27. R3e2 {[%clk 01:08:33]} {[%emt 00:00:27]} Nd4 {[%clk
00:45:17]} {[%emt 00:00:07]} 28. Qd1 {[%clk 01:08:37]} {[%emt 00:00:20]} Nxe2
{[%clk 00:45:39]} {[%emt 00:00:29]} 29. Rxe2 {[%clk 01:08:09]} {[%emt
00:00:37]} Rh8 {[%clk 00:45:25]} {[%emt 00:01:00]} 30. Kg1 {[%clk 01:08:20]}
{[%emt 00:00:11]} Qg5 {[%emt 00:03:16]} 0-1